bitfinex/quotes_ETHUSD_20250623
["timestamp","ask_amount","ask_price","bid_price","bid_amount"]
[1750679149870,0.7869,2250.8,2250.1,7.88622294]
[1750679150071,1.90454439,2250.7,2250.2,10.0]
[1750679150354,0.7952,2250.6,2249.5,4.44535409]
[1750679150555,1.90454439,2250.7,2249.8,7.05822294]
[1750679150556,0.7952,2250.4,2249.8,7.05822294]
[1750679150768,1.849,2250.3,2250.2,7.05822294]
[1750679151747,1.849,2250.3,2250.1,7.05822294]
[1750679151961,0.7511,2250.1,2249.4,5.21446602]
[1750679152161,0.7511,2249.9,2249.5,7.05822294]
[1750679152359,1.85,2249.8,2249.5,7.05822294]
[1750679152566,7.9701,2249.9,2249.3,10.0]
[1750679152567,0.7511,2249.9,2249.7,7.05822294]
[1750679153094,1.85,2249.8,2249.7,7.05822294]
[1750679155793,1.85,2249.8,2249.1,7.05822294]
[1750679155794,2.88767,2249.8,2249.1,0.8089]
[1750679155958,2.88767,2249.8,2249.3,7.05822294]
[1750679155959,0.8127,2249.7,2249.3,7.05822294]
[1750679156493,0.8127,2249.7,2249.0,10.34311306]
[1750679156848,0.8127,2249.7,2249.0,20.34311306]
[1750679157286,0.05557321,2249.6,2249.0,20.34311306]
[1750679157459,0.8127,2249.7,2249.1,0.02197576]
[1750679157648,1.90557049,2249.6,2249.0,23.34764311]
[1750679158164,0.8127,2249.5,2249.0,23.34764311]
[1750679160686,0.8127,2249.5,2248.8,10.0]
[1750679160687,0.05557395,2249.4,2248.8,10.0]
[1750679161487,0.8127,2249.3,2248.7,10.8089]
[1750679161689,0.0555784,2249.2,2248.6,10.34311306]
[1750679161988,1.851,2249.1,2248.6,10.34311306]
[1750679162192,0.86938415,2249.0,2248.2,11.10861306]
[1750679162491,0.86938415,2249.0,2248.2,15.55658721]
[1750679162652,0.8138,2249.0,2248.3,4.46981156]
[1750679162857,0.8138,2249.0,2248.3,14.46981156]
[1750679163058,0.8138,2249.0,2248.3,17.45044306]
[1750679163286,0.8138,2249.0,2248.5,10.34311306]
[1750679163498,0.8138,2249.0,2248.3,17.45044306]
[1750679163499,0.8138,2249.0,2248.3,10.0]
[1750679163704,0.8138,2248.9,2248.3,4.44779909]
[1750679163858,0.05559424,2248.8,2248.5,10.34311306]
[1750679164196,1.851,2249.2,2248.7,0.7678]
[1750679164366,0.8039,2249.6,2249.1,14.78933599]
[1750679164572,1.851,2249.5,2249.2,4.46784345]
[1750679164779,1.851,2249.7,2249.3,0.89140545]
[1750679164984,1.851,2249.7,2249.2,10.34311306]
[1750679165701,1.90656826,2249.7,2249.2,10.34311306]
[1750679166414,0.8089,2249.8,2249.2,10.34311306]
[1750679166591,9.102,2249.7,2249.2,10.34311306]
[1750679167458,9.102,2249.7,2249.2,14.78903861]
[1750679167653,9.102,2249.7,2249.3,1.92352532]
[1750679168257,9.102,2249.7,2249.2,10.34311306]
[1750679169394,0.05557122,2249.6,2249.2,10.34311306]
[1750679171976,0.7548,2249.5,2249.2,10.34311306]
[1750679172811,1.851,2249.5,2249.3,0.02197175]
[1750679173127,1.851,2249.5,2249.2,10.34311306]
[1750679173315,2.6058,2249.5,2249.2,10.34311306]
[1750679174291,2.6058,2249.5,2249.2,12.34855486]
[1750679174292,1.851,2249.5,2249.2,12.34855486]
[1750679174492,1.851,2249.5,2249.2,16.79455732]
[1750679174803,1.851,2249.5,2249.3,4.44580408]
[1750679175014,1.851,2249.5,2249.2,16.79443106]
[1750679175213,1.851,2249.5,2249.2,12.34855486]
[1750679175913,0.7994,2249.7,2249.3,1.70142998]
[1750679176117,9.128,2249.6,2249.3,6.12528047]
[1750679176316,1.876,2249.6,2249.5,10.34311306]
[1750679176993,1.876,2249.6,2249.5,14.78845786]
[1750679177192,1.876,2249.6,2249.5,10.34311306]
[1750679177412,1.876,2249.6,2249.5,12.648888]
[1750679177817,0.55,2250.6,2249.5,12.648888]
[1750679177818,0.8081,2250.5,2249.5,12.648888]
[1750679178095,7.251,2250.1,2249.8,10.34311306]
[1750679178739,0.8081,2250.5,2249.9,4.44450963]
[1750679178921,1.876,2250.1,2250.0,10.34311306]
[1750679179091,1.876,2250.1,2250.0,11.90053726]
[1750679179300,0.8081,2250.5,2250.0,11.90053726]
[1750679179499,1.876,2250.4,2250.0,11.90053726]
[1750679180435,1.876,2250.4,2250.3,10.34311306]
[1750679181522,1.876,2250.4,2250.2,0.7792]
[1750679181837,1.876,2250.4,2250.3,10.34311306]
[1750679183498,1.876,2250.4,2250.3,14.78696499]
[1750679183834,10.684,2250.6,2250.5,4.443457]
[1750679184025,1.875,2250.8,2250.5,4.443457]
[1750679184222,1.875,2250.8,2250.6,15.61223616]
[1750679184410,1.875,2250.8,2250.7,6.44863147]
[1750679184612,0.8184,2251.3,2250.8,4.44286223]
[1750679184838,1.875,2251.1,2251.0,10.34311306]
[1750679185035,1.875,2251.2,2251.0,15.61046214]
[1750679185242,1.875,2251.2,2251.1,4.46414567]
[1750679185398,1.875,2251.2,2251.1,6.90728228]
[1750679185603,1.875,2251.2,2251.1,2.44313661]
[1750679185804,1.875,2251.2,2251.1,6.88540927]
[1750679186024,1.875,2251.2,2251.1,6.90728127]
[1750679186237,1.875,2251.2,2251.1,2.44313661]
[1750679186621,1.875,2251.2,2251.1,6.88540927]
[1750679186826,1.875,2251.6,2251.1,12.44313661]
[1750679187031,1.875,2251.6,2251.4,10.34311306]
[1750679187716,1.875,2251.6,2251.2,12.36112497]
[1750679187917,1.875,2251.6,2251.3,0.0218631]
[1750679188138,0.87681688,2251.5,2251.1,10.34311306]
[1750679188339,0.8213,2251.5,2251.1,10.34311306]
[1750679188931,0.8213,2251.5,2251.1,11.45992437]
[1750679191715,0.8213,2251.5,2251.1,10.45992437]
[1750679192132,0.8213,2251.5,2251.1,9.34311306]
[1750679193944,0.8213,2251.5,2251.1,13.78535342]
[1750679194328,0.8213,2251.5,2251.1,9.34311306]
[1750679194646,0.8213,2251.5,2251.2,0.02187052]
[1750679195468,0.8213,2251.5,2251.1,9.34311306]
[1750679196138,1.0964818,2251.5,2251.1,9.34311306]
[1750679197045,1.0964818,2251.5,2251.2,0.02186906]
[1750679198567,0.8213,2251.5,2251.2,0.02186906]
[1750679199248,1.874,2251.6,2251.4,10.34311306]
[1750679201468,0.8218,2251.5,2251.1,10.34311306]
[1750679201626,0.8218,2251.5,2251.0,0.45457172]
[1750679201830,0.8218,2251.5,2250.9,14.44265746]
[1750679202655,0.8218,2251.5,2250.9,10.0]
[1750679202867,1.09693131,2251.5,2250.9,14.44265795]
[1750679203088,1.09693131,2251.5,2250.9,10.0]
[1750679203288,1.09693131,2251.5,2250.9,14.44265373]
[1750679205499,1.09693131,2251.5,2250.9,10.0]
[1750679205704,0.8173,2251.4,2250.5,11.11391306]
[1750679205922,0.8173,2251.2,2250.6,0.02189604]
[1750679206191,0.8173,2251.2,2250.6,10.02189604]
[1750679206192,9.134,2251.1,2250.6,10.02189604]
[1750679206396,9.134,2251.1,2250.6,10.0]
[1750679206602,9.134,2251.1,2250.6,14.89899195]
[1750679206749,9.134,2251.1,2250.8,10.34311306]
[1750679206951,1.878,2251.0,2250.8,14.78589481]
[1750679207885,1.878,2251.0,2250.8,10.34311306]
[1750679208092,1.878,2251.0,2250.8,14.78596143]
[1750679208672,1.878,2251.2,2251.0,4.44245867]
[1750679209001,1.878,2251.2,2251.1,14.78538572]
[1750679210158,1.878,2251.2,2251.1,14.68538572]
[1750679211594,1.878,2251.2,2251.1,10.24311306]
[1750679212110,1.878,2251.2,2251.1,14.68538572]
[1750679216284,1.878,2251.2,2251.1,10.24311306]
[1750679216921,1.878,2251.2,2251.1,10.19311306]
[1750679218135,7.254,2251.5,2251.1,10.19311306]
[1750679219119,8.24356,2251.5,2251.1,10.19311306]
[1750679219328,0.7907,2251.4,2251.1,10.19311306]
[1750679219538,0.7727,2251.9,2251.2,0.02187213]
[1750679219691,1.878,2251.8,2251.4,10.34311306]
[1750679220126,1.878,2251.8,2251.4,14.78469549]
[1750679220432,1.878,2251.8,2251.6,7.0362932]
[1750679220736,1.878,2251.8,2251.6,7.0581434]
[1750679220939,1.878,2251.8,2251.6,0.0218502]
[1750679221140,0.7754,2251.7,2251.2,12.81347598]
[1750679221318,0.7754,2251.7,2251.4,7.0362932]
[1750679222224,0.7754,2251.7,2251.3,0.02185995]
[1750679223731,0.7754,2251.7,2251.3,4.46367579]
[1750679223934,1.878,2251.8,2251.5,10.32219388]
[1750679224095,1.878,2251.8,2251.6,0.02184963]
[1750679224826,1.878,2251.8,2251.5,10.32219388]
[1750679225927,1.878,2251.8,2251.6,0.02185053]
[1750679226106,1.878,2251.8,2251.5,10.32219388]
[1750679227231,1.878,2251.8,2251.6,0.02184842]
[1750679227532,1.878,2251.8,2251.6,0.02184796]
[1750679227935,1.0,2252.0,2251.8,4.4408198]
[1750679228239,2.6773,2252.6,2252.2,5.25782422]
[1750679228538,1.878,2252.6,2252.4,10.32219388]
[1750679228745,1.878,2252.6,2252.5,0.02180578]
[1750679229506,1.878,2252.6,2252.4,10.32219388]
[1750679233801,1.878,2252.6,2252.4,12.13542348]
[1750679235721,1.878,2252.6,2252.4,1.8132296]
[1750679235926,1.87564711,2252.6,2252.4,6.25293218]
[1750679236126,1.87564711,2252.6,2252.4,1.8132296]
[1750679240047,1.87564711,2252.6,2252.4,6.25285062]
[1750679240245,1.87564711,2252.6,2252.5,12.39146181]
[1750679240471,1.895,2252.7,2252.5,17.64390112]
[1750679241961,1.895,2252.7,2252.5,13.20446181]
[1750679242730,1.895,2252.7,2252.5,13.10446181]
[1750679244032,1.895,2252.7,2252.5,12.29146181]
[1750679244746,1.895,2252.7,2252.6,1.06091165]
[1750679245105,1.895,2252.8,2252.6,5.50022621]
[1750679245304,1.895,2252.8,2252.6,1.06091165]
[1750679245733,1.895,2252.8,2252.6,5.50021272]
[1750679245934,1.895,2252.8,2252.7,1.77916745]
[1750679248364,1.895,2252.8,2252.5,12.29146181]
[1750679248864,1.895,2252.8,2252.5,16.73095365]
[1750679249460,1.895,2252.8,2252.5,12.29146181]
[1750679249624,1.895,2252.8,2252.6,4.43923164]
[1750679250243,1.895,2252.8,2252.7,7.02980007]
[1750679251928,1.895,2252.8,2252.7,8.37363716]
[1750679252168,1.895,2252.8,2252.7,13.63435466]
[1750679252329,1.895,2252.8,2252.7,23.63435466]
[1750679252978,1.895,2252.8,2252.7,18.37363716]
[1750679254178,1.895,2252.8,2252.7,10.0]
[1750679254387,1.895,2252.8,2252.7,17.02980007]
[1750679255376,1.895,2252.8,2252.7,7.02980007]
[1750679255685,1.895,2252.8,2252.7,12.24961757]
[1750679256907,1.895,2253.1,2252.9,4.43860493]
[1750679257057,1.895,2253.1,2253.0,7.02980007]
[1750679259949,1.89264763,2253.1,2253.0,7.02980007]
[1750679264370,9.141,2253.1,2253.0,7.02980007]
[1750679266704,0.8072,2253.4,2253.0,7.02980007]
[1750679267007,0.8072,2253.4,2253.3,7.02980007]
[1750679267205,9.9262,2253.4,2253.3,7.02980007]
[1750679267502,0.8072,2253.4,2253.3,7.02980007]
[1750679267718,9.9272,2253.4,2253.3,7.02980007]
[1750679268270,1.875,2253.4,2253.3,7.02980007]
[1750679268575,9.119,2253.4,2253.3,7.02980007]
[1750679269710,10.669,2253.5,2253.3,7.02980007]
[1750679269911,9.118,2253.4,2253.3,7.02980007]
[1750679271110,10.669,2253.5,2253.3,7.02980007]
[1750679271412,19.786,2253.5,2253.3,7.02980007]
[1750679271801,10.669,2253.5,2253.3,7.02980007]
[1750679272002,9.116,2253.4,2253.3,7.02980007]
[1750679272706,9.115,2253.4,2253.3,7.02980007]
[1750679274917,10.669,2253.5,2253.3,7.02980007]
[1750679275215,9.112,2253.4,2253.3,7.02980007]
[1750679279085,9.107,2253.4,2253.3,7.02980007]
[1750679279417,10.669,2253.5,2253.3,7.02980007]
[1750679279624,12.544,2253.5,2253.4,4.43773852]
[1750679279806,10.669,2253.5,2253.4,4.43773852]
[1750679279995,10.669,2253.5,2253.3,13.13449401]
[1750679279996,19.777,2253.5,2253.3,13.13449401]
[1750679280195,10.669,2253.5,2253.3,13.13449401]
[1750679280513,17.902,2253.5,2253.3,8.69666949]
[1750679280897,17.902,2253.5,2253.3,13.13459948]
[1750679281297,17.902,2253.5,2253.3,8.69666949]
[1750679281822,10.669,2253.5,2253.3,8.69666949]
[1750679282124,17.901,2253.5,2253.3,8.69666949]
[1750679282888,17.901,2253.5,2253.3,13.13459416]
[1750679283519,19.774,2253.5,2253.3,13.13445599]
[1750679283709,19.774,2253.5,2253.4,1.3896956]
[1750679284705,10.669,2253.5,2253.4,1.3896956]
[1750679284907,19.771,2253.5,2253.4,1.84165618]
[1750679285498,19.771,2253.5,2253.4,0.45196058]
[1750679285827,19.771,2253.5,2253.3,7.02980007]
[1750679286033,19.771,2253.5,2253.4,7.02980007]
[1750679287538,20.5873,2253.5,2252.9,7.02980007]
[1750679287710,20.5873,2253.5,2253.1,7.02980007]
[1750679289139,20.5873,2253.5,2253.3,7.02980007]
[1750679289438,19.771,2253.5,2253.3,7.02980007]
[1750679290852,0.7754,2253.4,2252.9,10.7966]
[1750679291055,7.229,2253.3,2253.2,7.02980007]
[1750679291352,0.7754,2253.4,2253.2,13.44034299]
[1750679291353,7.23,2253.4,2253.2,13.44034299]
[1750679293261,0.8296,2253.8,2253.2,13.44034299]
[1750679293448,0.8296,2253.8,2253.2,9.0023088]
[1750679294956,7.232,2253.7,2253.4,7.02980007]
[1750679295565,0.8296,2253.8,2253.4,7.02980007]
[1750679295770,7.23,2253.6,2253.4,13.25533613]
[1750679296123,7.229,2253.6,2253.4,13.25533613]
[1750679296751,0.8078,2254.0,2253.4,13.25533613]
[1750679296956,0.8078,2254.0,2253.6,7.02980007]
[1750679296957,9.097,2253.7,2253.6,7.02980007]
[1750679301579,9.097,2253.7,2253.4,9.27249509]
[1750679302893,0.8078,2254.0,2253.6,7.02980007]
[1750679303083,9.097,2253.7,2253.6,7.02980007]
[1750679303285,9.097,2253.7,2253.6,8.40081562]
[1750679304380,9.097,2253.7,2253.6,7.02980007]
[1750679304588,9.097,2253.7,2253.4,7.48467466]
[1750679304789,9.097,2253.7,2253.4,7.02980007]
[1750679305996,9.097,2253.7,2253.4,11.46752678]
[1750679306166,0.8078,2254.0,2253.4,11.46741428]
[1750679306499,9.095,2253.9,2253.6,7.02980007]
[1750679306993,9.095,2253.8,2253.6,7.02980007]
[1750679310305,1.868,2254.0,2253.7,0.7573]
[1750679310494,1.868,2254.0,2253.9,7.02980007]
[1750679311577,1.868,2254.0,2253.7,7.78710007]
[1750679311906,1.868,2254.0,2253.8,0.91209871]
[1750679312679,1.868,2254.0,2253.7,7.02980007]
[1750679314284,1.868,2254.0,2253.8,0.8033]
[1750679314604,1.868,2254.0,2253.7,7.02980007]
[1750679315407,2.6801,2254.0,2253.5,8.6956784]
[1750679315918,2.6801,2254.0,2253.5,7.02980007]
[1750679315919,1.868,2253.9,2253.5,7.02980007]
[1750679331443,0.7999,2253.8,2253.4,0.44819681]
[1750679331638,0.7999,2253.8,2253.1,7.02980007]
[1750679332766,0.7999,2253.8,2253.3,7.02980007]
[1750679333369,0.7999,2253.8,2253.3,7.73278008]
[1750679337369,0.7999,2253.8,2253.3,7.02980007]
[1750679340857,0.7999,2253.8,2253.1,7.02980007]
[1750679341377,0.7999,2253.8,2253.3,7.02980007]
[1750679342076,0.7999,2253.8,2253.1,7.02980007]
[1750679342438,0.7999,2253.8,2253.3,7.02980007]
[1750679342640,0.7873,2253.6,2253.3,7.02980007]
[1750679343696,0.7873,2253.6,2253.5,7.02980007]
[1750679344264,9.8743,2253.6,2253.5,7.02980007]
[1750679347059,0.772,2253.8,2253.5,7.02980007]
[1750679347265,9.085,2253.7,2253.5,7.85200007]
[1750679347696,9.085,2253.7,2253.5,8.63720008]
[1750679348901,9.085,2253.7,2253.4,7.46380223]
[1750679349091,9.085,2253.7,2253.4,7.02980007]
[1750679350115,1.868,2253.7,2253.6,7.02980007]
[1750679350601,0.7682,2254.0,2253.6,7.02980007]
[1750679350806,1.868,2254.0,2253.9,7.02980007]
[1750679353412,1.868,2254.0,2253.7,7.02980007]
[1750679354392,1.868,2254.0,2253.9,7.02980007]
[1750679354393,9.09,2254.0,2253.9,7.02980007]
[1750679354588,9.09,2254.0,2253.7,7.02980007]
[1750679358276,10.664,2254.1,2253.9,7.02980007]
[1750679358477,9.079,2254.0,2253.9,7.02980007]
[1750679361636,9.08,2254.0,2253.9,7.02980007]
[1750679361847,9.08,2254.0,2253.9,8.25268257]
[1750679363313,10.664,2254.1,2253.9,12.68931556]
[1750679363517,10.664,2254.1,2254.0,15.19495723]
[1750679363839,0.8157,2254.6,2254.1,14.4363604]
[1750679364011,9.078,2254.5,2254.0,1.33355]
[1750679364205,9.078,2254.5,2253.9,1.9812825]
[1750679364206,9.078,2254.5,2254.1,7.36128332]
[1750679365002,0.8157,2254.6,2254.4,10.0]
[1750679365205,9.077,2254.5,2254.4,10.0]
[1750679365403,1.86,2254.5,2254.4,10.0]
[1750679365832,0.2250767,2254.7,2254.6,10.7947]
[1750679366022,2.6672,2255.4,2254.9,10.7947]
[1750679366209,9.8902,2255.4,2255.3,17.02980007]
[1750679366424,9.089,2255.4,2255.3,17.02980007]
[1750679366807,11.4278,2256.0,2255.5,0.7589]
[1750679367007,11.4278,2256.0,2255.9,10.0]
[1750679367008,0.7648,2256.0,2255.9,10.0]
[1750679367236,1.332999,2256.5,2255.9,8.73278008]
[1750679367237,0.7648,2256.5,2255.9,8.73278008]
[1750679367439,9.1,2256.4,2255.8,10.0]
[1750679367607,9.1,2256.4,2255.9,7.02980007]
[1750679367831,1.86,2256.4,2256.1,7.02980007]
[1750679368134,0.2250767,2256.9,2256.5,0.55]
[1750679368462,0.2250767,2256.9,2256.3,14.05960014]
[1750679368463,0.2250767,2256.9,2256.6,8.08480007]
[1750679368753,0.2250767,2256.9,2256.7,10.0]
[1750679368965,0.2250767,2256.9,2256.2,0.816]
[1750679368966,7.4770767,2256.9,2256.2,0.816]
[1750679369115,0.7555,2256.8,2256.2,7.84580007]
[1750679369315,0.7555,2256.8,2256.4,7.02980007]
[1750679370139,0.7555,2256.8,2256.0,10.0]
[1750679370446,0.7555,2256.8,2255.9,0.777]
[1750679370447,9.118,2256.7,2255.9,0.777]
[1750679370651,0.98735,2256.6,2255.9,0.777]
[1750679370850,0.98735,2256.6,2255.8,10.0]
[1750679371221,0.98735,2256.6,2255.7,10.28106982]
[1750679371762,0.98735,2256.6,2256.0,10.28106982]
[1750679371926,1.86,2256.6,2256.1,0.8005]
[1750679372125,1.86,2256.6,2256.3,10.28106982]
[1750679372653,2.0850767,2256.9,2256.3,10.28106982]
[1750679373232,0.2250767,2256.9,2256.6,10.28106982]
[1750679374392,1.859,2258.2,2257.2,0.7807]
[1750679374589,7.283,2258.0,2257.2,0.7807]
[1750679374883,7.283,2258.0,2257.2,11.51155057]
[1750679375182,0.7503,2258.7,2257.2,15.94170812]
[1750679375332,0.7503,2258.7,2257.6,10.0]
[1750679375333,9.163,2258.6,2257.6,10.0]
[1750679375532,0.7503,2258.4,2257.3,10.0]
[1750679376548,0.51542772,2258.4,2257.3,10.0]
[1750679377434,9.164,2258.3,2257.3,10.0]
[1750679377636,9.164,2258.3,2257.3,14.43006781]
[1750679377834,9.164,2258.3,2257.3,10.0]
[1750679378035,0.96794277,2258.2,2257.3,10.0]
[1750679378536,0.55,2258.1,2257.0,4.352827]
[1750679378855,0.96794277,2258.2,2257.0,4.352827]
[1750679378856,10.96794277,2258.2,2257.0,3.021213]
[1750679379231,10.96794277,2258.2,2257.0,7.45177951]
[1750679379689,0.6189,2258.1,2257.0,7.45177951]
[1750679379976,1.15868428,2258.0,2257.1,6.72824948]
[1750679380179,1.15868428,2258.0,2257.2,10.28106982]
[1750679380743,1.15868428,2258.0,2257.2,14.71133226]
[1750679380939,1.15868428,2258.0,2257.2,15.14941794]
[1750679381286,0.6189,2258.1,2257.5,10.28106982]
[1750679381451,2.4769,2258.1,2257.5,10.28106982]
[1750679381871,1.858,2258.1,2257.5,10.28106982]
[1750679382180,10.656,2258.9,2257.7,5.735901]
[1750679382181,0.6189,2258.7,2257.7,5.735901]
[1750679382363,9.17,2258.6,2257.7,0.7567]
[1750679382565,0.97889,2258.5,2257.7,0.7567]
[1750679383081,10.656,2258.9,2257.6,10.28106982]
[1750679383282,1.858,2258.5,2257.9,10.28106982]
[1750679383841,1.858,2258.5,2257.9,4.42874485]
[1750679384080,1.858,2258.5,2258.0,4.42864761]
[1750679384282,1.858,2258.6,2258.2,0.8023]
[1750679384787,10.656,2258.9,2258.3,4.42810008]
[1750679385101,0.2250767,2259.2,2258.7,4.42716287]
[1750679385102,2.1650767,2259.2,2258.7,4.42716287]
[1750679385387,2.1650767,2259.2,2258.5,11.08336982]
[1750679385590,2.7839767,2259.2,2258.5,10.8023]
[1750679385880,0.2250767,2259.2,2258.5,21.08336982]
[1750679386072,0.2250767,2259.2,2258.8,14.70811791]
[1750679386379,10.649,2259.9,2258.8,14.70811791]
[1750679386380,1.94,2260.5,2259.2,0.757]
[1750679386579,0.71175003,2260.4,2259.2,15.1833236]
[1750679386874,0.09285003,2260.3,2259.2,5.1832442]
[1750679387075,0.09285003,2260.3,2259.2,0.757]
[1750679387241,0.6189,2260.2,2258.9,2.088762]
[1750679387441,10.0,2260.1,2258.9,0.7583]
[1750679387638,9.9329,2260.0,2258.9,0.7583]
[1750679387888,9.9329,2260.0,2259.0,14.42663781]
[1750679388217,1.94,2259.9,2259.1,4.42643494]
[1750679388343,1.94,2259.9,2259.2,16.59261819]
[1750679388543,1.94,2259.9,2259.3,4.42614725]
[1750679388744,1.939,2259.9,2259.5,14.70665417]
[1750679388969,1.939,2259.9,2259.2,11.88531109]
[1750679389166,1.939,2259.9,2259.1,0.7921]
[1750679389677,0.71175003,2260.3,2258.8,11.32]
[1750679389678,1.1689,2260.2,2258.8,11.32]
[1750679389844,7.395,2260.0,2258.8,11.32]
[1750679390041,7.395,2260.0,2258.8,0.77]
[1750679390042,0.6189,2259.9,2258.8,0.77]
[1750679390376,0.6189,2259.8,2258.8,0.77]
[1750679390579,0.6189,2259.6,2258.5,0.447133]
[1750679390777,1.939,2259.5,2258.4,15.49817069]
[1750679390976,1.939,2259.5,2258.5,10.0]
[1750679391281,1.939,2259.5,2258.7,10.28106982]
[1750679391442,1.939,2259.5,2258.7,14.70838431]
[1750679391650,1.939,2259.5,2258.8,1.47083843]
[1750679392977,1.939,2259.4,2258.8,5.89795461]
[1750679393178,1.939,2259.4,2258.9,0.7946]
[1750679393380,10.644,2260.0,2259.3,10.28106982]
[1750679393580,2.5579,2259.9,2259.3,10.28106982]
[1750679393976,2.5579,2259.9,2259.3,1.47073248]
[1750679394177,2.5579,2259.9,2259.1,10.28106982]
[1750679394395,2.5579,2259.9,2259.0,10.0]
[1750679394711,2.5579,2259.9,2258.9,5.22149766]
[1750679395014,0.6189,2259.8,2258.9,0.7946]
[1750679395378,0.6189,2259.8,2258.8,11.47083843]
[1750679395685,0.6189,2259.6,2258.8,11.47083843]
[1750679395888,0.6189,2259.6,2258.8,1.47083843]
[1750679396096,0.6189,2259.6,2258.8,5.89787167]
[1750679396800,0.6189,2259.6,2258.8,5.89793002]
[1750679396980,0.6189,2259.6,2259.0,10.0]
[1750679397382,0.6189,2259.6,2258.8,1.47083843]
[1750679397601,0.6189,2259.6,2258.9,1.14708384]
[1750679398584,0.6189,2259.6,2259.0,10.0]
[1750679398784,0.6189,2259.6,2258.8,5.89788146]
[1750679399583,0.6189,2259.6,2258.8,1.47083843]
[1750679400678,0.6189,2259.6,2258.7,10.0]
[1750679401283,0.6189,2259.6,2257.9,0.7695]
[1750679401284,0.6189,2259.2,2257.9,0.7695]
[1750679401535,0.55,2259.3,2258.1,4.42842604]
[1750679401536,0.6189,2259.0,2258.1,4.42842604]
[1750679401686,0.6189,2259.0,2258.2,10.0]
[1750679401883,9.325,2258.9,2258.3,4.42795687]
[1750679402103,1.939,2258.8,2258.4,14.70888252]
[1750679402339,1.939,2258.8,2258.4,10.28106982]
[1750679403188,1.939,2258.8,2258.2,10.0]
[1750679403611,1.939,2258.8,2257.9,5.64401185]
[1750679403612,0.6189,2258.7,2257.9,1.21522663]
[1750679403797,0.6189,2258.7,2257.5,10.28106982]
[1750679403998,0.6189,2258.5,2257.6,1.02810698]
[1750679404398,0.6189,2258.5,2257.7,4.42910993]
[1750679404399,1.939,2258.4,2257.7,4.42910993]
[1750679404599,1.939,2258.4,2257.6,15.45747173]
[1750679405223,1.939,2258.4,2257.7,4.42916674]
[1750679405591,1.939,2258.4,2257.6,15.45744496]
[1750679405787,2.959169,2258.4,2257.6,11.02810698]
[1750679406126,0.6189,2258.3,2257.6,11.02810698]
[1750679406702,0.6189,2258.3,2257.7,4.42927225]
[1750679406897,0.6189,2258.3,2257.6,15.45752531]
[1750679407531,0.6189,2258.3,2257.7,4.42921843]
[1750679407715,0.6189,2258.3,2257.7,5.9211057]
[1750679407919,1.939,2258.3,2257.8,11.06686982]
[1750679408529,1.939,2258.3,2257.9,4.42880025]
[1750679408718,1.939,2258.3,2257.8,15.49587093]
[1750679408896,1.939,2258.3,2257.8,18.74037668]
[1750679409229,0.6189,2258.2,2257.8,13.52557557]
[1750679409431,0.6189,2258.2,2257.8,10.28106982]
[1750679410133,0.6189,2258.2,2257.6,15.45747462]
[1750679410505,0.6189,2258.2,2257.6,11.02810698]
[1750679410708,0.6189,2258.2,2257.6,10.0]
[1750679411121,1.939,2258.1,2257.6,14.42945096]
[1750679411931,2.5579,2258.2,2257.8,14.71011368]
[1750679412297,2.5579,2258.2,2257.8,10.28106982]
[1750679412931,2.5579,2258.2,2257.6,14.42939508]
[1750679413130,2.81369,2258.2,2257.6,10.0]
[1750679413529,2.81369,2258.2,2257.6,14.42941474]
[1750679413729,2.5579,2258.2,2257.7,4.42915005]
[1750679413939,1.939,2258.1,2257.8,10.28106982]
[1750679414299,1.939,2258.6,2258.1,4.42850183]
[1750679414502,10.71797764,2259.8,2258.2,10.0]
[1750679414503,10.28106982,2259.8,2258.2,10.0]
[1750679414708,13.1979,2258.9,2258.4,14.70890123]
[1750679415026,11.2589,2258.9,2258.4,13.27644964]
[1750679415340,10.64,2258.9,2258.6,4.42736275]
[1750679415838,10.64,2258.9,2258.6,4.86234832]
[1750679416039,10.64,2258.9,2258.6,4.86234401]
[1750679416343,1.964,2259.0,2258.6,4.86231358]
[1750679416540,1.964,2259.0,2258.6,8.11895324]
[1750679418922,1.964,2259.0,2258.6,3.69154756]
[1750679419327,1.964,2259.0,2258.6,8.11904017]
[1750679420029,1.964,2259.0,2258.6,8.11889473]
[1750679420349,0.6189,2259.1,2258.6,8.11889473]
[1750679420654,1.964,2259.2,2258.8,4.42698231]
[1750679420809,1.964,2259.2,2258.7,16.96293679]
[1750679421846,1.964,2259.2,2258.8,4.42700952]
[1750679422002,1.964,2259.2,2258.7,12.53572967]
[1750679422623,1.964,2259.2,2258.7,12.25465985]
[1750679422831,1.964,2259.2,2258.8,4.42701508]
[1750679423248,1.964,2259.2,2258.8,16.94209771]
[1750679423615,0.6189,2259.4,2259.0,4.42671803]
[1750679423815,1.964,2259.5,2258.9,14.42682467]
[1750679424020,1.964,2259.5,2258.9,14.42683943]
[1750679424224,1.964,2259.5,2258.9,17.78920054]
[1750679424455,0.6189,2259.4,2258.7,4.4272044]
[1750679424658,0.6189,2259.4,2258.8,10.0]
[1750679425144,0.6189,2259.4,2258.6,11.51227772]
[1750679425518,0.6189,2259.2,2258.1,5.18976115]
[1750679425726,0.6189,2259.0,2258.0,14.70967451]
[1750679425924,0.6189,2258.8,2258.1,11.47096745]
[1750679426820,0.6189,2258.8,2258.1,1.47096745]
[1750679427027,0.6189,2258.8,2258.1,10.0]
[1750679432621,0.6189,2258.8,2257.8,15.19037549]
[1750679432845,0.6189,2258.8,2258.1,10.0]
[1750679433156,0.6189,2258.8,2258.1,14.42848118]
[1750679433320,1.964,2258.7,2258.1,14.42847593]
[1750679433517,1.964,2258.7,2258.2,2.47095458]